fUSD/lending_fUSD_20250404
["ID","MTS","AMOUNT","RATE_DAILY","PERIOD"]
[357146802,1743792650204,-186.0,0.00049315,90]
[357146803,1743792650214,-186.0,0.00049315,90]
[357146804,1743792650307,-186.0,0.00049315,90]
[357146805,1743792650317,-186.0,0.00049315,90]
[357146806,1743792650326,-186.0,0.00049315,90]
[357146807,1743792650335,-186.0,0.00049315,90]
[357146808,1743792650344,-186.0,0.00049315,90]
[357146809,1743792650353,-186.0,0.00049315,90]
[357146810,1743792650362,-186.0,0.00049315,90]
[357146811,1743792650371,-186.0,0.00049315,90]
[357146812,1743792650380,-186.0,0.00049315,90]
[357146813,1743792650389,-186.0,0.00049315,90]
[357146814,1743792650398,-186.0,0.00049315,90]
[357146815,1743792650407,-186.0,0.00049315,90]
[357146816,1743792650416,-186.0,0.00049315,90]
[357146817,1743792650426,-186.0,0.00049315,90]
[357146818,1743792650434,-186.0,0.00049315,90]
[357146819,1743792650443,-186.0,0.00049315,90]
[357146820,1743792650453,-186.0,0.00049315,90]
[357146821,1743792650462,-186.0,0.00049315,90]
[357146822,1743792650471,-186.0,0.00049315,90]
[357146823,1743792650479,-186.0,0.00049315,90]
[357146824,1743792650488,-186.0,0.00049315,90]
[357146825,1743792650498,-186.0,0.00049315,90]
[357146826,1743792650507,-186.0,0.00049315,90]
[357146827,1743792650516,-186.0,0.00049315,90]
[357146828,1743792650526,-186.0,0.00049315,90]
[357146829,1743792650535,-186.0,0.00049315,90]
[357146830,1743792650544,-186.0,0.00049315,90]
[357146831,1743792650553,-186.0,0.00049315,90]
[357146832,1743792650562,-186.0,0.00049315,90]
[357146833,1743792650571,-186.0,0.00049315,90]
[357146834,1743792650580,-186.0,0.00049315,90]
[357146835,1743792650590,-186.0,0.00049315,90]
[357146836,1743792650600,-186.0,0.00049315,90]
[357146837,1743792650609,-186.0,0.00049315,90]
[357146838,1743792650619,-186.0,0.00049315,90]
[357146839,1743792650628,-186.0,0.00049315,90]
[357146840,1743792650638,-186.0,0.00049315,90]
[357146841,1743792650648,-186.0,0.00049315,90]
[357146842,1743792650657,-186.0,0.00049315,90]
[357146843,1743792650667,-186.0,0.00049315,90]
[357146844,1743792650677,-186.0,0.00049315,90]
[357146845,1743792650686,-186.0,0.00049315,90]
[357146846,1743792650695,-186.0,0.00049315,90]
[357146847,1743792650705,-186.0,0.00049315,90]
[357146848,1743792650715,-186.0,0.00049315,90]
[357146849,1743792650724,-186.0,0.00049315,90]
[357146850,1743792650733,-186.0,0.00049315,90]
[357146851,1743792650743,-186.0,0.00049315,90]
[357146852,1743792650752,-186.0,0.00049315,90]
[357146853,1743792650762,-186.0,0.00049315,90]
[357146854,1743792650772,-186.0,0.00049315,90]
[357146855,1743792650782,-186.0,0.00049315,90]
[357146856,1743792650791,-186.0,0.00049315,90]
[357146857,1743792650801,-186.0,0.00049315,90]
[357146858,1743792650820,-186.0,0.00049315,90]
[357146859,1743792650829,-186.0,0.00049315,90]
[357146860,1743792650838,-186.0,0.00049315,90]
[357146861,1743792650847,-186.0,0.00049315,90]
[357146862,1743792650857,-186.0,0.00049315,90]
[357146863,1743792650866,-186.0,0.00049315,90]
[357146864,1743792650875,-186.0,0.00049315,90]
[357146865,1743792650884,-186.0,0.00049315,90]
[357146866,1743792650895,-230.0,0.00049315,90]
[357146867,1743792650904,-230.0,0.00049315,90]
[357146868,1743792650914,-230.0,0.00049315,90]
[357146869,1743792650923,-230.0,0.00049315,90]
[357146870,1743792650933,-230.0,0.00049315,90]
[357146871,1743792650942,-230.0,0.00049315,90]
[357146872,1743792650954,-230.0,0.00049315,90]
[357146873,1743792650963,-230.0,0.00049315,90]
[357146874,1743792650972,-230.0,0.00049315,90]
[357146875,1743792650982,-230.0,0.00049315,90]
[357146876,1743792650993,-230.0,0.00049315,90]
[357146877,1743792651004,-230.0,0.00049315,90]
[357146878,1743792651014,-230.0,0.00049315,90]
[357146879,1743792651024,-230.0,0.00049315,90]
[357146880,1743792651035,-230.0,0.00049315,90]
[357146881,1743792651045,-230.0,0.00049315,90]
[357146882,1743792651054,-230.0,0.00049315,90]
[357146883,1743792651064,-230.0,0.00049315,90]
[357146884,1743792651073,-230.0,0.00049315,90]
[357146885,1743792651083,-230.0,0.00049315,90]
[357146886,1743792651092,-230.0,0.00049315,90]
[357146887,1743792651102,-230.0,0.00049315,90]
[357146888,1743792651112,-230.0,0.00049315,90]
[357146889,1743792651122,-230.0,0.00049315,90]
[357146890,1743792651131,-230.0,0.00049315,90]
[357146891,1743792651141,-230.0,0.00049315,90]
[357146892,1743792651150,-230.0,0.00049315,90]
[357146893,1743792651160,-230.0,0.00049315,90]
[357146894,1743792651169,-230.0,0.00049315,90]
[357146895,1743792651177,-230.0,0.00049315,90]
[357146896,1743792651187,-230.0,0.00049315,90]
[357146897,1743792651195,-230.0,0.00049315,90]
[357146898,1743792651204,-230.0,0.00049315,90]
[357146899,1743792651213,-230.0,0.00049315,90]
[357146900,1743792651222,-1000.0,0.00049315,20]
[357146901,1743792651231,-150.0,0.0004932,7]
[357146902,1743792651240,-250.0,0.00049321,10]
[357146903,1743792651250,-150.0,0.00049324,7]
[357146904,1743792651259,-150.0,0.00049329,7]
[357146905,1743792651269,-230.54,0.0004933,30]
[357146906,1743792651280,-5000.0,0.0004934,30]
[357146907,1743792651290,-150.0,0.00049351,30]
[357146908,1743792651299,-2607.19,0.00049357,30]
[357146909,1743792651308,-5000.0,0.00049362,30]
[357146910,1743792651318,-150.0,0.00049372,7]
[357146911,1743792651328,-189.13705955,0.00049388,7]
[357146912,1743792651337,-150.0,0.0004939,7]
[357146913,1743792651346,-150.0,0.00049395,7]
[357146914,1743792651355,-150.0,0.00049398,7]
[357146915,1743792651364,-1379.77,0.00049408,30]
[357146916,1743792651374,-150.0,0.0004941,7]
[357146917,1743792651383,-150.0,0.0004941,7]
[357146918,1743792651393,-150.0,0.00049419,7]
[357146919,1743792651402,-150.0,0.00049427,7]
[357146920,1743792651411,-150.0,0.00049432,30]
[357146921,1743792651420,-2617.72,0.00049439,30]
[357146922,1743792651429,-150.0,0.00049441,7]
[357146923,1743792651438,-771.85,0.00049447,120]
[357146924,1743792651447,-500.0,0.00049447,120]
[357146925,1743792651456,-500.0,0.00049447,120]
[357146926,1743792651465,-500.0,0.00049447,120]
[357146927,1743792651475,-500.0,0.00049447,120]
[357146928,1743792651484,-500.0,0.00049447,120]
[357146929,1743792651493,-500.0,0.00049447,120]
[357146930,1743792651502,-752.65,0.00049447,120]
[357146931,1743792651513,-500.0,0.00049447,120]
[357146932,1743792651525,-500.0,0.00049447,120]
[357146933,1743792651534,-544.47003216,0.00049447,120]
[357146934,1743792651544,-500.0,0.00049447,120]
[357146935,1743792651553,-404.62825005,0.00049447,120]
[357146936,1743792651562,-500.0,0.00049447,120]
[357146937,1743792651572,-1792.4,0.00049447,10]
[357146938,1743792651581,-500.0,0.00049447,120]
[357146939,1743792651590,-500.0,0.00049447,7]
[357146940,1743792651599,-500.0,0.00049447,30]
[357146941,1743792651608,-500.0,0.00049447,120]
[357146942,1743792651617,-2000.0,0.00049447,2]
[357146943,1743792651626,-500.0,0.00049447,120]
[357146944,1743792651635,-893.45,0.00049447,120]
[357146945,1743792651644,-1008.22,0.00049447,120]
[357146946,1743792651655,-500.0,0.00049447,120]
[357146947,1743792651665,-500.0,0.00049447,120]
[357146948,1743792651675,-500.0,0.00049447,120]
[357146949,1743792651760,-500.0,0.00049447,120]
[357146950,1743792651771,-997.14,0.00049447,120]
[357146951,1743792651782,-538.49,0.00049447,120]
[357146952,1743792651791,-572.03,0.00049447,120]
[357146953,1743792651801,-391.5353458,0.00049447,120]
[357146954,1743792651810,-2999.97,0.00049447,2]
[357146955,1743792651820,-500.0,0.00049447,2]
[357146956,1743792651829,-907.09,0.00049447,120]
[357146957,1743792651838,-500.0,0.00049447,120]
[357146958,1743792651847,-500.0,0.00049447,7]
[357146959,1743792651857,-151.0,0.00049447,120]
[357146960,1743792651867,-500.0,0.00049447,120]
[357146961,1743792651878,-857.64,0.00049447,120]
[357146962,1743792651887,-500.0,0.00049447,120]
[357146963,1743792651896,-500.0,0.00049447,120]
[357146964,1743792651906,-500.0,0.00049447,120]
[357146965,1743792651915,-500.0,0.00049447,120]
[357146966,1743792651924,-503.81,0.00049447,120]
[357146967,1743792651933,-500.0,0.00049447,120]
[357146968,1743792651943,-500.0,0.00049447,120]
[357146969,1743792651956,-500.0,0.00049447,120]
[357146970,1743792651965,-500.0,0.00049447,120]
[357146971,1743792651974,-500.0,0.00049447,120]
[357146972,1743792651983,-500.0,0.00049447,120]
[357146973,1743792651994,-725.03,0.00049447,120]
[357146974,1743792652003,-150.0,0.00049451,7]
[357146975,1743792652012,-961.73,0.00049452,30]
[357146976,1743792652022,-1000.0,0.00049452,20]
[357146977,1743792652033,-150.0,0.00049466,7]
[357146978,1743792652043,-5000.0,0.00049471,30]
[357146979,1743792652052,-150.0,0.00049472,7]
[357146980,1743792652062,-150.0,0.0004948,7]
[357146981,1743792652071,-5000.0,0.00049492,30]
[357146982,1743792652081,-150.0,0.00049493,7]
[357146983,1743792652091,-2191.83,0.000495,120]
[357146984,1743792652101,-150.0,0.00049501,7]
[357146985,1743792652110,-150.0,0.00049507,7]
[357146986,1743792652120,-150.0,0.00049508,7]
[357146987,1743792652130,-4443.93,0.00049515,30]
[357146988,1743792652140,-150.0,0.00049538,7]
[357146989,1743792652150,-619.97,0.00049546,120]
[357146990,1743792652160,-500.0,0.00049547,16]
[357146991,1743792652170,-500.0,0.00049547,2]
[357146992,1743792652180,-416.10948836,0.00049547,3]
[357146993,1743792652189,-517.3183573,0.00049547,120]
[357146994,1743792652199,-537.96693723,0.00049547,120]
[357146995,1743792652209,-524.60394143,0.00049547,120]
[357146996,1743792652218,-500.0,0.00049547,120]
[357146997,1743792652228,-500.0,0.00049547,2]
[357146998,1743792652238,-500.0,0.00049547,120]
[357146999,1743792652247,-150.0,0.00049566,7]
[357147000,1743792652257,-150.0,0.00049574,7]
[357147001,1743792652267,-150.0,0.00049581,7]
[357147002,1743792652277,-500.0,0.00049589,120]
[357147003,1743792652286,-553.61,0.00049589,120]
[357147004,1743792652296,-906.24,0.00049589,120]
[357147005,1743792652305,-500.0,0.00049589,120]
[357147006,1743792652315,-518.86,0.00049589,120]
[357147007,1743792652325,-500.0,0.00049589,120]
[357147008,1743792652335,-500.0,0.00049589,30]
[357147009,1743792652344,-500.0,0.00049589,120]
[357147010,1743792652354,-500.0,0.00049589,120]
[357147011,1743792652363,-500.0,0.00049589,120]
[357147012,1743792652372,-500.0,0.00049589,120]
[357147013,1743792652383,-302.63389832,0.00049589,120]
[357147014,1743792652393,-500.0,0.00049589,120]
[357147015,1743792652403,-796.2,0.00049589,120]
[357147016,1743792652413,-500.0,0.00049589,120]
[357147017,1743792652422,-213.60649934,0.00049589,120]
[357147018,1743792652431,-318.8039107,0.00049589,120]
[357147019,1743792652440,-500.0,0.00049589,120]
[357147020,1743792652450,-827.34,0.00049589,120]
[357147021,1743792652460,-500.0,0.00049589,12]
[357147022,1743792652469,-500.0,0.00049589,120]
[357147023,1743792652478,-500.0,0.00049589,120]
[357147024,1743792652488,-500.0,0.00049589,30]
[357147025,1743792652497,-245.04887631,0.00049589,120]
[357147026,1743792652549,-254.95112369,0.00049589,120]
[357147027,1743792652560,-500.0,0.00049589,120]
[357147028,1743792652570,-217.43247785,0.00049589,120]
[357147029,1743792652580,-746.2,0.00049589,120]
[357147030,1743792652589,-500.0,0.00049589,120]
[357147031,1743792652599,-500.0,0.00049589,120]
[357147032,1743792652608,-288.6028606,0.00049589,7]
[357147033,1743792652618,-684.54,0.00049589,120]
[357147034,1743792652627,-500.0,0.00049589,120]
[357147035,1743792652636,-491.12099421,0.00049589,120]
[357147036,1743792652647,-500.0,0.00049589,120]
[357147037,1743792652657,-542.04,0.00049589,120]
[357147038,1743792652667,-500.0,0.00049589,120]
[357147039,1743792652676,-615.46045509,0.00049589,120]
[357147040,1743792652686,-795.52,0.00049589,120]
[357147041,1743792652695,-229.38547563,0.00049589,120]
[357147042,1743792652705,-500.0,0.00049589,120]
[357147043,1743792652714,-500.0,0.00049589,120]
[357147044,1743792652724,-508.26,0.00049589,120]
[357147045,1743792652733,-500.0,0.00049589,120]
[357147046,1743792652743,-500.0,0.00049589,10]
[357147047,1743792652752,-500.0,0.00049589,10]
[357147048,1743792652762,-1875.29,0.00049589,120]
[357147049,1743792652771,-500.0,0.00049589,120]
[357147050,1743792652781,-514.47,0.00049589,120]
[357147051,1743792652790,-500.0,0.00049589,120]
[357147052,1743792652800,-500.0,0.00049589,120]
[357147053,1743792652809,-500.0,0.00049589,120]
[357147054,1743792652819,-500.0,0.00049589,120]
[357147055,1743792652828,-1848.9,0.00049589,120]
[357147056,1743792652838,-1974.33,0.00049589,120]
[357147057,1743792652847,-654.5,0.00049589,120]
[357147058,1743792652857,-685.91,0.00049589,120]
[357147059,1743792652866,-791.31,0.00049589,120]
[357147060,1743792652875,-500.0,0.00049589,120]
[357147061,1743792652885,-529.49737016,0.00049589,120]
[357147062,1743792652895,-178.07226051,0.00049589,120]
[357147063,1743792652904,-524.14,0.00049589,120]
[357147064,1743792652914,-500.0,0.00049589,120]
[357147065,1743792652923,-570.54,0.00049589,120]
[357147066,1743792652932,-934.65,0.00049589,120]
[357147067,1743792652942,-908.92,0.00049589,120]
[357147068,1743792652952,-500.0,0.00049589,120]
[357147069,1743792652962,-539.56,0.00049589,120]
[357147070,1743792652972,-2359.71,0.00049589,7]
[357147071,1743792652982,-500.0,0.00049589,120]
[357147072,1743792652993,-500.0,0.00049589,120]
[357147073,1743792653003,-500.0,0.00049589,120]
[357147074,1743792653089,-405.58135278,0.00049589,120]
[357147075,1743792653099,-500.0,0.00049589,120]
[357147076,1743792653109,-1118.39,0.00049589,120]
[357147077,1743792653119,-593.91642581,0.00049589,120]
[357147078,1743792653129,-500.0,0.00049589,2]
[357147079,1743792653139,-500.0,0.00049589,120]
[357147080,1743792653150,-500.0,0.00049589,120]
[357147081,1743792653160,-500.0,0.00049589,120]
[357147082,1743792653170,-619.59,0.00049589,120]
[357147083,1743792653180,-793.57,0.00049589,120]
[357147084,1743792653192,-168.03062015,0.00049589,120]
[357147085,1743792653203,-1318.54,0.00049589,120]
[357147086,1743792653213,-500.0,0.00049589,120]
[357147087,1743792653223,-1219.9,0.00049589,120]
[357147088,1743792653233,-500.0,0.00049589,120]
[357147089,1743792653243,-514.36626453,0.00049589,120]
[357147090,1743792653253,-500.0,0.00049589,2]
[357147091,1743792653262,-457.04382181,0.00049589,120]
[357147092,1743792653272,-500.0,0.00049589,2]
[357147093,1743792653282,-500.0,0.00049589,120]
[357147094,1743792653293,-4812.53,0.00049589,120]
[357147095,1743792653303,-500.0,0.00049589,2]
[357147096,1743792653314,-586.94806024,0.00049589,120]
[357147097,1743792653324,-202.64240195,0.00049589,120]
[357147098,1743792653333,-500.0,0.00049589,120]
[357147099,1743792653343,-500.0,0.00049589,100]
[357147100,1743792653354,-500.0,0.00049589,120]
[357147101,1743792653364,-2532.09,0.00049589,120]
[357147102,1743792653373,-5000.0,0.00049598,30]
[357147103,1743792653385,-150.0,0.000496,7]
[357147104,1743792653395,-150.0,0.00049604,30]
[357147105,1743792653405,-500.0,0.00049605,120]
[357147106,1743792653415,-20669.65,0.00049606,30]
[357147107,1743792653425,-475.38,0.00049611,30]
[357147108,1743792653435,-150.0,0.00049612,7]
[357147109,1743792653446,-150.0,0.00049613,7]
[357147110,1743792653460,-150.0,0.00049614,7]
[357147111,1743792653470,-150.0,0.00049618,30]
[357147112,1743792653480,-150.0,0.00049632,7]
[357147113,1743792653495,-5000.0,0.00049648,30]
[357147114,1743792653506,-150.0,0.00049658,7]
[357147115,1743792653516,-150.0,0.00049658,7]
[357147116,1743792653526,-5000.0,0.00049666,30]
[357147117,1743792653536,-150.0,0.0004967,7]
[357147118,1743792653546,-150.0,0.00049673,7]
[357147119,1743792653555,-150.0,0.00049699,7]
[357147120,1743792653567,-1572.2284189,0.000497,120]
[357147121,1743792653579,-150.0,0.00049709,7]
[357147122,1743792653588,-2798.33,0.00049714,30]
[357147123,1743792653598,-771.85,0.00049721,120]
[357147124,1743792653608,-500.0,0.00049721,120]
[357147125,1743792653617,-500.0,0.00049721,120]
[357147126,1743792653627,-500.0,0.00049721,120]
[357147127,1743792653636,-500.0,0.00049721,120]
[357147128,1743792653646,-500.0,0.00049721,120]
[357147129,1743792653656,-500.0,0.00049721,120]
[357147130,1743792653666,-752.65,0.00049721,120]
[357147131,1743792653676,-500.0,0.00049721,120]
[357147132,1743792653686,-500.0,0.00049721,120]
[357147133,1743792653695,-545.5143485,0.00049721,120]
[357147134,1743792653705,-500.0,0.00049721,120]
[357147135,1743792653715,-1792.4,0.00049721,10]
[357147136,1743792653724,-500.0,0.00049721,120]
[357147137,1743792653733,-500.0,0.00049721,7]
[357147138,1743792653743,-500.0,0.00049721,30]
[357147139,1743792653752,-500.0,0.00049721,120]
[357147140,1743792653761,-2000.0,0.00049721,2]
[357147141,1743792653771,-500.0,0.00049721,120]
[357147142,1743792653780,-893.45,0.00049721,120]
[357147143,1743792653789,-1008.22,0.00049721,120]
[357147144,1743792653798,-500.0,0.00049721,120]
[357147145,1743792653808,-500.0,0.00049721,120]
[357147146,1743792653817,-500.0,0.00049721,120]
[357147147,1743792653826,-500.0,0.00049721,120]
[357147148,1743792653835,-997.14,0.00049721,120]
[357147149,1743792653845,-538.49,0.00049721,120]
[357147150,1743792653854,-572.03,0.00049721,120]
[357147151,1743792653864,-2999.97,0.00049721,2]
[357147152,1743792653873,-500.0,0.00049721,2]
[357147153,1743792653883,-907.09,0.00049721,120]
[357147154,1743792653892,-500.0,0.00049721,120]
[357147155,1743792653901,-500.0,0.00049721,7]
[357147156,1743792653910,-500.0,0.00049721,120]
[357147157,1743792653920,-857.64,0.00049721,120]
[357147158,1743792653929,-500.0,0.00049721,120]
[357147159,1743792653939,-500.0,0.00049721,120]
[357147160,1743792653954,-500.0,0.00049721,120]
[357147161,1743792653963,-500.0,0.00049721,120]
[357147162,1743792653972,-503.81,0.00049721,120]
[357147163,1743792653983,-151.0,0.00049721,120]
[357147164,1743792653992,-500.0,0.00049721,120]
[357147165,1743792654002,-500.0,0.00049721,120]
[357147166,1743792654011,-500.0,0.00049721,120]
[357147167,1743792654022,-227.317871,0.00049721,120]
[357147168,1743792654033,-227.317871,0.00049721,120]
[357147169,1743792654042,-500.0,0.00049721,120]
[357147170,1743792654052,-500.0,0.00049721,120]
[357147171,1743792654063,-500.0,0.00049721,120]
[357147172,1743792654073,-725.03,0.00049721,120]
[357147173,1743792654083,-357.55,0.00049721,120]
[357147174,1743792654092,-357.55,0.00049721,120]
[357147175,1743792654102,-442.166639,0.00049721,120]
[357147176,1743792654112,-1242.29097,0.00049721,120]
[357147177,1743792654122,-442.166639,0.00049721,120]
[357147178,1743792654132,-1576.280015,0.00049721,120]
[357147179,1743792654142,-1576.280015,0.00049721,120]
[357147180,1743792654151,-151.0,0.00049721,120]
[357147181,1743792654161,-151.0,0.00049721,120]
[357147182,1743792654171,-150.0,0.00049724,7]
[357147183,1743792654181,-150.0,0.00049738,7]
[357147184,1743792654191,-150.0,0.00049739,7]
[357147185,1743792654200,-150.0,0.00049746,7]
[357147186,1743792654210,-150.0,0.00049768,7]
[357147187,1743792654219,-150.0,0.00049771,7]
[357147188,1743792654229,-150.0,0.00049776,7]
[357147189,1743792654242,-150.0,0.00049778,7]
[357147190,1743792654252,-1832.27,0.00049783,30]
[357147191,1743792654261,-1000.0,0.00049783,30]
[357147192,1743792654271,-3675.52,0.00049784,30]
[357147193,1743792654280,-3896.57157165,0.0004979,120]
[357147194,1743792654291,-619.97,0.00049799,120]
[357147195,1743792654369,-146620.29115497,0.000498,30]
[357147196,1743792654385,-2852.88272891,0.000498,30]
[357147197,1743792654395,-151.0,0.000498,120]
[357147198,1743792654404,-332.48614924,0.000498,2]
[357147199,1743792654414,-500.0,0.0004982,120]
[357147200,1743792654423,-500.0,0.00049821,16]
[357147201,1743792654432,-500.0,0.00049821,2]
[357147202,1743792654442,-389.62312432,0.00049821,120]
[357147203,1743792654451,-500.0,0.00049863,120]
[357147204,1743792654461,-553.61,0.00049863,120]
[357147205,1743792654470,-906.24,0.00049863,120]
[357147206,1743792654479,-500.0,0.00049863,120]
[357147207,1743792654490,-518.86,0.00049863,120]
[357147208,1743792654500,-500.0,0.00049863,120]
[357147209,1743792654510,-500.0,0.00049863,30]
[357147210,1743792654519,-175.67759026,0.00049863,120]
[357147211,1743792654529,-500.0,0.00049863,120]
[357147212,1743792654538,-500.0,0.00049863,120]
[357147213,1743792654547,-500.0,0.00049863,120]
[357147214,1743792654556,-500.0,0.00049863,120]
[357147215,1743792654565,-796.2,0.00049863,120]
[357147216,1743792654575,-500.0,0.00049863,120]
[357147217,1743792654585,-181.21570302,0.00049863,120]
[357147218,1743792654594,-827.34,0.00049863,120]
[357147219,1743792654603,-500.0,0.00049863,12]
[357147220,1743792654613,-500.0,0.00049863,120]
[357147221,1743792654623,-500.0,0.00049863,120]
[357147222,1743792654632,-500.0,0.00049863,30]
[357147223,1743792654642,-500.0,0.00049863,120]
[357147224,1743792654651,-500.0,0.00049863,120]
[357147225,1743792654660,-109.01693674,0.00049863,120]
[357147226,1743792654798,-637.18306326,0.00049863,120]
[357147227,1743792654815,-500.0,0.00049863,120]
[357147228,1743792654834,-266.1370538,0.00049863,120]
[357147229,1743792654853,-684.54,0.00049863,120]
[357147230,1743792654870,-500.0,0.00049863,120]
[357147231,1743792654888,-500.0,0.00049863,120]
[357147232,1743792654909,-542.04,0.00049863,120]
[357147233,1743792654927,-500.0,0.00049863,120]
[357147234,1743792654947,-795.52,0.00049863,120]
[357147235,1743792654966,-500.0,0.00049863,120]
[357147236,1743792654984,-500.0,0.00049863,120]
[357147237,1743792654999,-508.26,0.00049863,120]
[357147238,1743792655018,-500.0,0.00049863,120]
[357147239,1743792655033,-500.0,0.00049863,10]
[357147240,1743792655051,-500.0,0.00049863,10]
[357147241,1743792655066,-1875.29,0.00049863,120]
[357147242,1743792655080,-500.0,0.00049863,120]
[357147243,1743792655095,-514.47,0.00049863,120]
[357147244,1743792655109,-500.0,0.00049863,120]
[357147245,1743792655124,-500.0,0.00049863,120]
[357147246,1743792655139,-500.0,0.00049863,120]
[357147247,1743792655154,-384.65721904,0.00049863,120]
[357147248,1743792655168,-1848.9,0.00049863,120]
[357147249,1743792655183,-1974.33,0.00049863,120]
[357147250,1743792655196,-82.33774985,0.00049863,120]
[357147251,1743792655342,-572.16225015,0.00049863,120]
[357147252,1743792655353,-685.91,0.00049863,120]
[357147253,1743792655362,-791.31,0.00049863,120]
[357147254,1743792655372,-500.0,0.00049863,120]
[357147255,1743792655381,-524.14,0.00049863,120]
[357147256,1743792655390,-500.0,0.00049863,120]
[357147257,1743792655400,-570.54,0.00049863,120]
[357147258,1743792655409,-934.65,0.00049863,120]
[357147259,1743792655418,-908.92,0.00049863,120]
[357147260,1743792655428,-610.56639746,0.00049863,120]
[357147261,1743792655437,-539.56,0.00049863,120]
[357147262,1743792655447,-2359.71,0.00049863,7]
[357147263,1743792655456,-361.43697521,0.00049863,120]
[357147264,1743792655466,-500.0,0.00049863,120]
[357147265,1743792655475,-500.0,0.00049863,120]
[357147266,1743792655484,-500.0,0.00049863,120]
[357147267,1743792655494,-1118.39,0.00049863,120]
[357147268,1743792655503,-500.0,0.00049863,2]
[357147269,1743792655512,-500.0,0.00049863,120]
[357147270,1743792655521,-500.0,0.00049863,120]
[357147271,1743792655669,-500.0,0.00049863,120]
[357147272,1743792655747,-619.59,0.00049863,120]
[357147273,1743792655759,-793.57,0.00049863,120]
[357147274,1743792655769,-1318.54,0.00049863,120]
[357147275,1743792655778,-500.0,0.00049863,120]
[357147276,1743792655788,-1219.9,0.00049863,120]
[357147277,1743792655798,-500.0,0.00049863,120]
[357147278,1743792655807,-615.26116738,0.00049863,2]
[357147279,1743792655817,-500.0,0.00049863,2]
[357147280,1743792655826,-500.0,0.00049863,120]
[357147281,1743792655835,-4812.53,0.00049863,120]
[357147282,1743792655845,-500.0,0.00049863,2]
[357147283,1743792655855,-564.0439911,0.00049863,120]
[357147284,1743792655864,-500.0,0.00049863,100]
[357147285,1743792655874,-500.0,0.00049863,120]
[357147286,1743792655883,-2532.09,0.00049863,120]
[357147287,1743792655892,-350.0,0.00049868,10]
[357147288,1743792655902,-21767.30788861,0.0004988,30]
[357147289,1743792655911,-357.55,0.0004988,120]
[357147290,1743792655920,-357.55,0.0004988,120]
[357147291,1743792655930,-442.166639,0.0004988,120]
[357147292,1743792655939,-1242.290975,0.0004988,120]
[357147293,1743792655950,-442.166645,0.0004988,120]
[357147294,1743792655961,-500.0,0.0004988,30]
[357147295,1743792655970,-1576.280015,0.0004988,120]
[357147296,1743792655979,-1576.280014,0.0004988,120]
[357147297,1743792655990,-284.94061,0.0004988,120]
[357147298,1743792655999,-151.0,0.0004988,120]
[357147299,1743792656009,-48729.66244926,0.00049897,120]
[357147300,1743792656018,-4424.8,0.000499,14]
[357147301,1743792656028,-1000.0,0.000499,30]